bitfinex/quotes_SOLUSD_20250125
["timestamp","ask_amount","ask_price","bid_price","bid_amount"]
[1737820929278,25.07321757,253.92,253.77,3.9405]
[1737820929483,5.7,253.92,253.78,20.39391332]
[1737820929682,19.37321757,253.94,253.78,20.39391332]
[1737820929982,20.94831757,253.96,253.79,23.776884]
[1737820930185,19.37321757,253.96,253.8,8.24115697]
[1737820930575,5.7,253.97,253.81,23.776884]
[1737820930802,5.7,253.97,253.82,0.39379836]
[1737820930987,19.37321757,253.96,253.82,0.39379836]
[1737820931379,20.94821757,253.96,253.83,3.9396]
[1737820931776,19.37321757,253.92,253.81,3.9398]
[1737820931999,1.575,253.96,253.8,7.8473]
[1737820932000,19.37321757,253.88,253.8,7.8473]
[1737820932393,19.37321757,253.84,253.74,1.5983]
[1737820933103,19.37321757,253.82,253.74,1.5983]
[1737820933307,19.37321757,253.78,253.68,0.063]
[1737820933612,1.5762,253.77,253.68,0.063]
[1737820933974,19.37321757,253.76,253.68,0.063]
[1737820934286,19.37321757,253.72,253.68,0.063]
[1737820934481,19.37321757,253.7,253.68,0.063]
[1737820935912,1.5767,253.69,253.68,0.063]
[1737820937405,19.37321757,253.7,253.68,0.063]
[1737820937900,20.0,253.7,253.68,0.063]
[1737820938205,19.37321757,253.72,253.68,0.063]
[1737820938410,20.0,253.7,253.68,0.063]
[1737820938596,39.37321757,253.7,253.68,0.063]
[1737820939312,29.476884,253.69,253.68,0.063]
[1737820939618,55.353584,253.69,253.68,0.063]
[1737820940885,20.0,253.62,253.55,6.249]
[1737820941205,19.37321757,253.63,253.55,6.249]
[1737820941912,20.0,253.62,253.55,6.249]
[1737820942412,20.0,253.64,253.55,10.1928]
[1737820943112,19.37321757,253.67,253.55,10.1928]
[1737820943319,20.95001757,253.67,253.55,10.1928]
[1737820943487,19.37321757,253.65,253.55,10.1928]
[1737820943688,19.37321757,253.61,253.5,0.063]
[1737820944003,19.37321757,253.59,253.5,0.063]
[1737820944187,19.37321757,253.57,253.5,0.063]
[1737820944692,19.37321757,253.55,253.5,0.063]
[1737820945220,19.37321757,253.61,253.5,4.0077]
[1737820945393,20.0,253.58,253.5,4.0077]
[1737820946101,19.37321757,253.57,253.5,0.063]
[1737820947185,19.37321757,253.55,253.5,0.063]
[1737820947908,25.07321757,253.57,253.5,0.063]
[1737820948089,5.7,253.57,253.5,0.063]
[1737820949105,20.0,253.52,253.5,0.063]
[1737820949412,19.37321757,253.51,253.5,0.063]
[1737820950186,19.37321757,253.53,253.5,0.063]
[1737820950529,20.0,253.51,253.5,0.063]
[1737820951915,19.37321757,253.51,253.5,0.063]
[1737820953214,43.15010157,253.51,253.5,0.063]
[1737820954091,39.37321757,253.51,253.5,0.063]
[1737820954289,26.65081757,253.54,253.5,0.063]
[1737820957115,20.0,253.51,253.5,0.063]
[1737820957416,45.354684,253.51,253.5,0.063]
[1737820959199,20.0,253.48,253.47,0.063]
[1737820959398,40.95121757,253.48,253.47,0.063]
[1737820960016,64.72810157,253.48,253.47,0.063]
[1737820960315,65.45021487,253.48,253.47,0.063]
[1737820963333,50.0,253.43,253.36,0.063]
[1737820963628,20.0,253.37,253.36,0.063]
[1737820963824,63.15010157,253.37,253.36,0.063]
[1737820964399,39.37321757,253.37,253.36,0.063]
[1737820965107,30.0,253.43,253.36,0.063]
[1737820965108,23.776884,253.38,253.36,0.063]
[1737820965302,19.37321757,253.39,253.36,0.063]
[1737820965502,20.0,253.37,253.36,0.063]
[1737820967135,63.15010157,253.37,253.36,0.063]
[1737820967624,64.72880157,253.37,253.36,0.063]
[1737820967835,57.51522507,253.37,253.36,0.063]
[1737820971303,32.15964107,253.37,253.36,0.063]
[1737820971620,12.15964107,253.37,253.36,0.063]
[1737820972003,78.09616614,253.37,253.36,0.063]
[1737820972515,30.0,253.32,253.3,0.063]
[1737820972717,37.51552507,253.31,253.3,0.063]
[1737820973723,2.9,253.34,253.3,0.063]
[1737820973724,21.03822774,253.32,253.3,0.063]
[1737820974600,19.45922774,253.36,253.3,0.063]
[1737820974806,19.45922774,253.38,253.3,0.063]
[1737820975009,19.45922774,253.4,253.31,6.1597]
[1737820975409,23.776884,253.39,253.31,6.1597]
[1737820975602,23.776884,253.37,253.31,6.1597]
[1737820975798,19.45922774,253.4,253.31,6.1597]
[1737820976013,20.0,253.37,253.31,6.1597]
[1737820976231,19.45922774,253.36,253.31,6.1597]
[1737820976714,19.45922774,253.34,253.3,0.063]
[1737820976924,19.45922774,253.32,253.3,0.063]
[1737820977324,23.776884,253.31,253.3,0.063]
[1737820977524,30.0,253.28,253.27,0.0001]
[1737820977702,50.0,253.25,253.24,0.03]
[1737820978020,93.23611174,253.25,253.24,0.03]
[1737820978523,93.95822504,253.25,253.24,0.03]
[1737820978726,95.53762504,253.25,253.24,0.03]
[1737820979027,65.53762504,253.25,253.24,0.03]
[1737820979211,95.53762504,253.25,253.24,0.03]
[1737820979413,65.53762504,253.25,253.24,0.03]
[1737820979821,114.99685278,253.25,253.24,0.03]
[1737820980028,95.53762504,253.25,253.24,0.03]
[1737820980215,65.53762504,253.25,253.24,0.03]
[1737820981720,41.76074104,253.25,253.24,0.03]
[1737820982029,31.5263,253.3,253.24,0.03]
[1737820982030,23.776884,253.26,253.24,0.03]
[1737820982614,25.356284,253.26,253.24,0.03]
[1737820982808,20.0,253.25,253.24,0.03]
[1737820983143,43.776884,253.25,253.24,0.03]
[1737820983808,19.45922774,253.31,253.24,0.03]
[1737820984034,19.45922774,253.29,253.24,0.03]
[1737820984626,23.776884,253.28,253.24,0.03]
[1737820985121,19.45922774,253.29,253.24,0.03]
[1737820985912,19.45922774,253.27,253.24,0.03]
[1737820986110,19.45922774,253.25,253.24,0.03]
[1737820987049,23.776884,253.26,253.24,0.03]
[1737820987251,20.0,253.28,253.24,0.03]
[1737820987833,19.45922774,253.29,253.24,0.03]
[1737820988335,19.45922774,253.33,253.24,0.03]
[1737820988540,21.03802774,253.35,253.24,0.03]
[1737820988720,19.45922774,253.35,253.24,0.03]
[1737820988924,23.776884,253.3,253.24,0.03]
[1737820991726,19.45922774,253.33,253.24,0.03]
[1737820992237,23.776884,253.32,253.24,0.03]
[1737820992559,23.776884,253.3,253.24,0.03]
[1737820993817,19.45922774,253.31,253.24,0.03]
[1737820994450,19.45922774,253.33,253.24,0.03]
[1737820995311,5.73,253.42,253.25,6.1417]
[1737820995515,19.45922774,253.4,253.27,1.6561]
[1737820995745,32.15374969,253.4,253.27,1.6561]
[1737820996049,12.15374969,253.4,253.28,3.9481]
[1737820996221,32.15374969,253.4,253.28,3.9481]
[1737820996536,12.18374969,253.42,253.28,4.34281089]
[1737820996731,0.03,253.42,253.28,14.21321089]
[1737820997124,23.806884,253.42,253.28,14.21321089]
[1737820997324,37.53903369,253.42,253.28,14.21321089]
[1737820997835,12.15374969,253.38,253.28,3.9481]
[1737820998019,13.73234969,253.38,253.28,3.9481]
[1737820998225,12.15374969,253.36,253.27,1.6561]
[1737820998416,12.15374969,253.34,253.27,1.6561]
[1737820999848,12.15374969,253.34,253.27,5.6044]
[1737821000142,13.73264969,253.34,253.27,1.6561]
[1737821000329,1.6089,253.34,253.27,1.6561]
[1737821000638,23.776884,253.33,253.27,1.6561]
[1737821001223,23.776884,253.33,253.25,10.0902]
[1737821001619,23.776884,253.31,253.25,6.1417]
[1737821002523,1.5789,253.33,253.25,6.1417]
[1737821002761,25.355784,253.33,253.25,6.1417]
[1737821003934,25.355784,253.33,253.25,10.0903]
[1737821004463,1.5789,253.33,253.25,10.0903]
[1737821004762,0.03,253.34,253.25,10.0903]
[1737821007041,23.776884,253.33,253.25,6.1417]
[1737821007244,23.776884,253.31,253.25,6.1417]
[1737821009145,25.355984,253.31,253.24,0.03]
[1737821009343,12.15374969,253.3,253.24,0.03]
[1737821010830,1.5791,253.3,253.24,0.03]
[1737821011450,13.81378374,253.3,253.24,0.03]
[1737821011855,1.5791,253.3,253.24,0.03]
[1737821012859,7.2791,253.3,253.24,0.03]
[1737821013039,43.20983369,253.29,253.24,0.03]
[1737821013239,23.776884,253.26,253.24,0.03]
[1737821013454,29.476884,253.26,253.24,0.03]
[1737821014562,1.5794,253.25,253.24,0.03]
[1737821014858,25.356284,253.25,253.24,0.03]
[1737821016258,37.59096774,253.25,253.24,0.03]
[1737821017636,25.356284,253.25,253.24,0.03]
[1737821018650,12.23468374,253.26,253.24,0.03]
[1737821019456,24.46936748,253.28,253.24,0.03]
[1737821019457,23.776884,253.28,253.24,0.03]
[1737821020764,25.356184,253.28,253.24,0.03]
[1737821020939,23.776884,253.28,253.24,0.03]
[1737821021340,36.01156774,253.28,253.24,0.03]
[1737821022235,23.776884,253.28,253.24,0.03]
[1737821022436,23.776884,253.3,253.24,0.03]
[1737821022838,25.355984,253.3,253.24,0.03]
[1737821024165,23.776884,253.3,253.24,0.03]
[1737821024543,36.01156774,253.3,253.24,0.03]
[1737821025843,25.355984,253.3,253.24,0.03]
[1737821026344,23.776884,253.3,253.25,1.5681]
[1737821026544,24.46936748,253.32,253.25,1.5681]
[1737821026747,24.46936748,253.32,253.26,0.39475666]
[1737821026962,23.776884,253.31,253.25,1.5681]
[1737821027255,0.03,253.34,253.25,1.5681]
[1737821028078,23.776884,253.32,253.26,3.9485]
[1737821030249,25.355884,253.32,253.25,1.5681]
[1737821030481,23.776884,253.29,253.25,1.5681]
[1737821030771,23.776884,253.27,253.24,0.03]
[1737821031474,12.15374969,253.3,253.24,0.03]
[1737821031668,23.776884,253.31,253.24,0.03]
[1737821032263,25.355984,253.31,253.24,0.03]
[1737821033763,31.055984,253.31,253.24,0.03]
[1737821034677,23.776884,253.29,253.24,0.03]
[1737821036668,25.356084,253.29,253.24,0.03]
[1737821037852,23.776884,253.27,253.24,0.03]
[1737821038759,13.76294969,253.3,253.24,0.03]
[1737821038974,23.776884,253.29,253.24,0.03]
[1737821039657,29.476884,253.29,253.24,0.03]
[1737821039858,31.056084,253.29,253.24,0.03]
[1737821041370,5.7,253.29,253.24,0.03]
[1737821042799,5.7,253.29,253.24,0.42483207]
[1737821043088,5.7,253.29,253.25,6.5163]
[1737821043283,5.7,253.29,253.26,2.0310455]
[1737821043661,0.03,253.3,253.27,3.9483]
[1737821043857,0.03,253.3,253.28,0.39473011]
[1737821044065,0.0001,253.3,253.28,0.39473011]
[1737821044294,0.03,253.34,253.32,6.5163]
[1737821044586,0.03,253.34,253.33,2.03092407]
[1737821045005,24.77481671,253.38,253.34,23.776884]
[1737821045281,24.77481671,253.38,253.35,0.39458414]
[1737821045858,0.03,253.4,253.36,3.9469]
[1737821046057,0.03,253.42,253.39,1.0]
[1737821046284,0.03,253.42,253.41,1.6282]
[1737821046486,24.77481671,253.48,253.41,45.405084]
[1737821046678,24.77481671,253.48,253.44,23.776884]
[1737821046870,24.77481671,253.48,253.46,23.776884]
[1737821047195,4.92671671,253.56,253.48,23.776884]
[1737821047481,4.92671671,253.56,253.49,0.39434461]
[1737821047687,4.92671671,253.56,253.5,23.776884]
[1737821047860,4.92671671,253.56,253.51,4.33893757]
[1737821048272,4.92671671,253.56,253.53,1.6282]
[1737821048475,4.92671671,253.56,253.54,0.39432341]
[1737821048664,0.03,253.56,253.54,0.39432341]
[1737821049974,0.03,253.56,253.55,27.720784]
[1737821050784,0.03,253.56,253.55,3.9439]
[1737821050993,0.03,253.56,253.55,23.9439]
[1737821051785,0.03,253.56,253.55,3.9439]
[1737821051990,0.03,253.56,253.54,20.39432341]
[1737821052290,0.03,253.56,253.53,1.6282]
[1737821054204,0.03,253.56,253.48,4.33923552]
[1737821054370,0.03,253.56,253.47,7.7901]
[1737821054576,12.18374969,253.56,253.47,7.7901]
[1737821055299,12.18374969,253.56,253.47,6.2477]
[1737821055800,12.18374969,253.56,253.41,1.9368304]
[1737821055801,12.15374969,253.52,253.41,7.7495]
[1737821055992,1.9723,253.51,253.41,7.7495]
[1737821056878,12.15374969,253.54,253.42,0.39452425]
[1737821057902,12.15374969,253.54,253.43,3.9458]
[1737821058101,12.15374969,253.54,253.41,7.7495]
[1737821058406,12.15374969,253.52,253.41,7.7495]
[1737821058708,12.15374969,253.5,253.41,6.2071]
[1737821058887,12.15374969,253.48,253.41,6.2071]
[1737821059201,86.6,253.53,253.41,6.2071]
[1737821059202,12.15374969,253.5,253.41,6.2071]
[1737821060002,12.15374969,253.5,253.41,10.1532]
[1737821060187,1.9723,253.51,253.41,10.1532]
[1737821060814,0.03,253.5,253.41,10.1532]
[1737821061300,0.03,253.5,253.42,0.39453761]
[1737821062323,0.03,253.5,253.43,3.9458]
[1737821065186,0.03,253.5,253.44,23.776884]
[1737821065417,0.03,253.5,253.46,3.9453]
[1737821065707,0.03,253.5,253.48,1.5741]
[1737821065910,0.03,253.5,253.49,0.39435275]
[1737821066999,0.03,253.5,253.49,20.39435275]
[1737821067400,0.03,253.5,253.49,24.33925275]
[1737821067808,0.03,253.5,253.49,48.11613675]
[1737821068715,0.03,253.5,253.49,49.11613675]
[1737821069009,0.03,253.56,253.53,20.0]
[1737821069222,0.03,253.56,253.54,0.3942363]
[1737821069718,0.03,253.56,253.54,24.1711203]
[1737821070098,0.03,253.56,253.55,3.9439]
[1737821070421,0.03,253.56,253.54,0.3942363]
[1737821070710,0.0001,253.56,253.55,25.17120891]
[1737821070910,0.03,253.66,253.58,1.0]
[1737821071113,0.03,253.66,253.59,44.17104159]
[1737821072115,0.03,253.66,253.6,1.6477]
[1737821072304,0.03,253.66,253.64,20.0]
[1737821072508,0.03,253.66,253.65,0.39407648]
[1737821073025,0.03,253.68,253.67,43.776884]
[1737821073229,0.03,253.68,253.67,44.17091551]
[1737821074296,14.12334969,253.85,253.69,23.776884]
[1737821074591,14.12334969,253.85,253.7,0.39402028]
[1737821075418,14.12334969,253.85,253.71,3.9415]
[1737821075718,14.12334969,253.85,253.72,0.393994]
[1737821076301,37.93013369,253.87,253.72,20.393994]
[1737821076707,37.93013369,253.87,253.73,20.0]
[1737821076908,37.93013369,253.87,253.74,0.39397042]
[1737821077621,37.93013369,253.87,253.74,4.33487042]
[1737821078156,0.03,253.87,253.74,4.33487042]
[1737821078309,0.03,253.87,253.74,14.18747042]
[1737821079838,0.03,253.87,253.78,3.9404]
[1737821080016,0.03,253.87,253.79,0.39389499]
[1737821082022,0.03,253.87,253.8,3.9401]
[1737821082221,0.03,253.87,253.81,0.39388171]
[1737821083759,0.03,253.87,253.83,20.0]
[1737821083932,0.03,253.87,253.86,23.9391]
[1737821084115,0.03,253.87,253.86,24.33285703]
[1737821085620,0.03,253.87,253.86,25.33285703]
[1737821085822,0.03,253.87,253.86,26.33285703]
[1737821086753,0.03,253.87,253.86,4.33285703]
[1737821087351,0.03,253.94,253.88,1.0]
[1737821087551,0.03,253.94,253.89,20.39370377]
[1737821087939,0.03,253.94,253.89,0.39370377]
[1737821088462,0.03,253.94,253.88,0.3937268]
[1737821088652,0.03,253.94,253.86,3.9391]
[1737821089357,0.03,253.94,253.87,0.3938424]
[1737821090257,0.03,253.94,253.84,8.52778432]
[1737821090428,0.03,253.94,253.86,3.9391]
[1737821091232,0.03,253.94,253.86,4.33291829]
[1737821092560,0.03,253.94,253.88,20.0]
[1737821092728,0.03,253.94,253.89,21.39370703]
[1737821093231,0.03,253.94,253.89,20.39370703]
[1737821093865,0.03,253.94,253.9,3.9385]
[1737821094761,0.03,253.94,253.91,0.39375588]
[1737821095755,0.03,253.94,253.92,3.9382]
[1737821095955,0.03,253.94,253.93,0.3936759]
[1737821096636,1.6316,254.07,253.93,0.3936759]
[1737821098191,1.6316,254.07,253.94,13.7827]
[1737821098350,1.6316,254.07,253.95,0.39363007]
[1737821099263,0.03,254.07,253.95,6.49203007]
[1737821099463,0.03,254.07,253.98,20.0]
[1737821099634,0.03,254.07,253.99,0.39356273]
[1737821100263,0.03,254.07,254.0,3.937]
[1737821100636,0.03,254.07,254.01,0.39357609]
[1737821101268,0.03,254.07,254.02,3.9366]
[1737821102361,0.03,254.07,253.98,0.39358924]
[1737821102530,12.15374969,254.04,253.91,3.9384]
[1737821102735,12.15374969,254.06,253.92,25.51370744]
[1737821102966,0.03,254.07,253.92,25.51370744]
[1737821103345,0.03,254.07,253.93,13.7832]
[1737821103553,0.03,254.07,253.96,20.0]
[1737821103867,0.03,254.07,253.97,0.39359435]
[1737821104245,12.18374969,254.12,253.97,0.39359435]
[1737821104246,0.03,254.12,254.03,1.6336]
[1737821104486,0.03,254.12,254.04,2.39345921]
[1737821105576,0.03,254.12,254.08,20.0]
[1737821105776,0.03,254.12,254.09,0.3934235]
[1737821106806,0.03,254.12,254.1,3.9354]
[1737821106989,0.03,254.12,254.11,0.39340072]
[1737821108174,0.03,254.12,254.03,28.99290692]
[1737821108175,0.03,254.12,254.06,0.39343374]
[1737821108378,0.03,254.12,254.06,4.32933374]
[1737821108588,0.03,254.12,254.06,24.32933374]
[1737821109699,0.03,254.12,254.06,4.32933374]
[1737821110598,0.03,254.12,254.06,24.32933374]
[1737821111990,0.03,254.12,254.06,26.32933374]
[1737821112190,0.03,254.12,254.06,35.16943374]
[1737821112893,0.03,254.12,254.06,34.16943374]
[1737821113191,0.03,254.12,254.06,4.32933374]
[1737821114585,0.03,254.12,254.02,0.39346363]
[1737821114789,0.03,254.12,254.02,4.33006363]
[1737821114976,0.03,254.12,254.02,3.9366]
[1737821115378,0.03,254.12,254.03,0.39355311]
[1737821116195,0.03,254.12,253.98,15.9224]
[1737821116196,12.15374969,254.11,254.02,3.9366]
[1737821116396,23.776884,254.1,253.99,3.937]
[1737821116775,23.776884,254.1,253.98,0.39362087]
[1737821116776,23.776884,254.08,253.98,0.39362087]
[1737821116976,23.776884,254.08,253.97,3.9373]
[1737821117491,1.5147,254.1,253.97,3.9373]
[1737821118011,3.4825,254.1,253.97,23.9373]
[1737821118176,1.5147,254.1,253.97,4.9373]
[1737821118575,1.5147,254.1,253.97,14.7809]
[1737821118781,35.93063369,254.09,253.97,3.9373]
[1737821119198,23.776884,254.09,253.97,3.9373]
[1737821121003,0.03,254.12,253.99,21.0]
[1737821121178,0.03,254.12,254.03,1.0]
[1737821121383,0.03,254.12,254.05,1.0]
[1737821121587,0.03,254.12,254.06,0.39345061]
[1737821122003,0.03,254.12,254.07,3.9359]
[1737821122183,0.03,254.12,254.08,0.39345392]
[1737821124203,12.18374969,254.12,253.96,7.6189]
[1737821124380,0.03,254.13,253.99,20.0]
[1737821124577,0.03,254.13,254.0,0.3935386]
[1737821124799,0.03,254.13,254.01,1.0]
[1737821124995,0.03,254.13,254.02,0.39350172]
[1737821125680,0.03,254.13,254.05,1.0]
[1737821125881,0.03,254.13,254.06,0.39350179]
[1737821126108,0.03,254.13,254.07,3.9359]
[1737821126282,0.03,254.13,254.08,0.3934452]
[1737821128488,0.03,254.13,254.09,3.9356]
[1737821128688,0.03,254.13,254.1,0.39344652]
[1737821130015,0.03,254.13,254.11,20.39344383]
[1737821130224,0.0001,254.13,254.12,2.0]
[1737821131197,0.03,254.21,254.15,21.0]
[1737821131402,0.03,254.21,254.16,0.39327526]
[1737821131717,0.03,254.21,254.17,2.0]
[1737821131922,0.03,254.21,254.18,0.39323208]
[1737821132809,0.03,254.21,254.19,8.0686]
[1737821133220,0.03,254.21,254.2,3.9339]
[1737821133392,0.0001,254.21,254.2,3.9339]
[1737821133599,0.03,254.38,254.28,1.0]
[1737821133801,0.03,254.38,254.29,0.39309265]
[1737821134303,0.03,254.38,254.26,0.39312131]
[1737821135118,20.0,254.37,254.26,0.39312131]
[1737821135295,12.15374969,254.36,254.24,3.9332]
[1737821135491,23.776884,254.35,254.24,23.9332]
[1737821135691,23.776884,254.35,254.25,0.39318795]
[1737821136091,12.18374969,254.38,254.25,0.39318795]
[1737821136523,23.806884,254.38,254.25,0.39318795]
[1737821137022,23.806884,254.38,254.26,3.9329]
[1737821138319,23.776884,254.35,254.26,3.9329]
[1737821139597,14.14934969,254.38,254.26,3.9329]
[1737821140294,1.9956,254.38,254.26,3.9329]
[1737821140795,14.14934969,254.38,254.26,3.9329]
[1737821143942,12.15374969,254.32,254.21,13.768]
[1737821144233,23.776884,254.31,254.21,3.9337]
[1737821144918,12.15374969,254.34,254.21,3.9337]
[1737821145126,1.6315,254.38,254.23,20.0]
[1737821145321,1.6315,254.38,254.24,0.39317052]
[1737821145918,23.776884,254.37,254.25,3.9331]
[1737821146747,0.03,254.38,254.26,0.39318757]
[1737821147508,20.03,254.38,254.26,0.39318757]
[1737821147712,23.776884,254.37,254.26,0.39318757]
[1737821147929,0.03,254.38,254.27,13.7648]
[1737821148130,0.03,254.38,254.28,0.39312393]
[1737821148732,0.03,254.38,254.3,1.0]
[1737821149035,0.03,254.38,254.31,0.39309507]
[1737821149407,0.03,254.38,254.29,6.5909]
[1737821150544,0.03,254.38,254.3,3.9323]
[1737821152116,0.03,254.38,254.32,20.0]
[1737821152336,0.03,254.43,254.37,1.0]
[1737821152640,0.03,254.43,254.38,0.39297315]
[1737821154620,0.03,254.43,254.39,3.9309]
[1737821154840,0.03,254.43,254.4,0.39297455]
[1737821155037,0.03,254.43,254.41,6.5909]
[1737821156531,0.03,254.43,254.42,3.9305]
[1737821156925,0.03,254.43,254.35,3.9315]
[1737821158161,0.03,254.43,254.31,0.3930193]
[1737821158335,0.03,254.43,254.33,3.9318]
[1737821158654,0.03,254.43,254.28,3.9326]
[1737821158850,0.03,254.43,254.29,0.39312014]
[1737821159157,0.03,254.43,254.31,20.0]
[1737821159355,0.03,254.43,254.32,0.39308427]
[1737821159545,0.03,254.43,254.31,20.39311978]
[1737821159947,0.03,254.43,254.31,20.0]
[1737821160802,0.03,254.43,254.32,3.932]
[1737821160928,0.03,254.43,254.32,14.15522596]
[1737821162051,0.03,254.43,254.35,20.0]
[1737821162249,0.03,254.43,254.36,0.39298472]
[1737821162857,0.03,254.43,254.37,13.7594]
[1737821163058,0.03,254.43,254.38,0.39298442]
[1737821163446,0.03,254.43,254.37,13.7594]
[1737821163758,0.03,254.43,254.37,3.9312]
[1737821163956,0.03,254.43,254.32,9.8297]
[1737821164158,23.776884,254.41,254.31,3.932]
[1737821164332,23.776884,254.39,254.24,3.9332]
[1737821164728,25.742384,254.39,254.24,3.9332]
[1737821164930,23.776884,254.32,254.17,9.8358]
[1737821165136,23.776884,254.3,254.18,3.9342]
[1737821165345,20.0,254.25,254.13,1.95205226]
[1737821165550,43.776884,254.2,254.12,0.063]
[1737821165752,12.15374969,254.19,254.12,0.063]
[1737821165936,23.776884,254.14,254.12,0.063]
[1737821166147,12.15374969,254.2,254.12,0.063]
[1737821166351,12.15374969,254.22,254.12,0.063]
[1737821166534,23.776884,254.21,254.12,0.063]
[1737821167257,43.776884,254.13,254.12,0.063]
[1737821167664,63.11216069,254.13,254.12,0.063]
[1737821167954,20.0,254.09,254.03,0.063]
[1737821168261,23.776884,254.12,254.03,0.063]
[1737821168262,23.776884,254.04,254.03,0.063]
[1737821168869,19.33527669,254.07,254.03,0.063]
[1737821169070,3.04,254.12,254.03,0.063]
[1737821169248,1.5016,254.14,254.04,3.9363]
[1737821169750,23.776884,254.07,254.03,0.063]
[1737821170130,43.776884,254.04,254.03,0.063]
[1737821170326,63.11216069,254.04,254.03,0.063]
[1737821170972,43.11216069,254.04,254.03,0.063]
[1737821171278,23.776884,254.04,254.03,0.063]
[1737821173341,43.11216069,254.04,254.03,0.063]
[1737821173761,23.776884,254.04,254.03,0.063]
[1737821175763,5.7,254.05,254.04,3.9363]
[1737821175941,19.33527669,254.12,254.04,3.9363]
[1737821176147,5.7,254.13,254.04,3.9363]
[1737821176762,31.61577669,254.18,254.04,13.7772]
[1737821176941,5.7,254.17,254.04,14.17077703]
[1737821177360,19.33527669,254.22,254.04,14.17077703]
[1737821177563,25.03527669,254.22,254.04,14.17077703]
[1737821177772,23.776884,254.21,254.04,14.17077703]
[1737821177978,23.776884,254.17,254.04,3.9363]
[1737821178270,23.776884,254.15,254.04,3.9363]
[1737821179641,23.776884,254.13,254.04,13.7772]
[1737821179863,25.03527669,254.24,254.05,0.39351998]
[1737821180080,42.44,254.25,254.07,20.0]
[1737821180249,42.44,254.25,254.08,0.39338925]
[1737821180968,23.776884,254.24,254.08,0.39338925]
[1737821181161,42.44,254.25,254.11,6.5076]
[1737821181387,5.7,254.34,254.12,0.39337041]
[1737821181670,20.0,254.3,254.12,0.39337041]
[1737821181855,20.0,254.29,254.12,0.39337041]
[1737821182057,19.33527669,254.33,254.14,20.0]
[1737821182263,19.33527669,254.33,254.15,0.39327054]
[1737821182644,25.03527669,254.37,254.15,0.39327054]
[1737821182845,25.03527669,254.37,254.15,1.39327054]
[1737821183280,20.0,254.34,254.19,20.0]
[1737821183482,23.776884,254.36,254.2,0.39324102]
[1737821184084,19.33527669,254.37,254.2,0.39324102]
[1737821184376,23.776884,254.36,254.2,0.39324102]
[1737821184565,23.776884,254.34,254.21,3.9337]
[1737821185882,23.776884,254.36,254.22,0.3932508]
[1737821186074,19.33527669,254.37,254.22,0.3932508]
[1737821186592,20.0,254.34,254.23,13.767]
[1737821186756,20.0,254.34,254.24,0.39321188]
[1737821187988,1.9654,254.4,254.25,10.0423]
[1737821187989,20.0,254.33,254.25,10.0423]
[1737821188289,23.776884,254.38,254.26,0.39319625]
[1737821188983,19.33527669,254.36,254.25,11.6021]
[1737821189164,23.776884,254.34,254.25,11.6021]
[1737821189483,19.33527669,254.32,254.25,6.1092]
[1737821189671,19.33527669,254.32,254.2,3.9339]
[1737821191177,21.30127669,254.32,254.2,3.9339]
[1737821191387,19.33527669,254.3,254.2,3.9339]
[1737821192983,21.30147669,254.3,254.2,3.9339]
[1737821193283,21.30147669,254.3,254.18,1.5598]
[1737821193284,19.33527669,254.26,254.18,3.9341]